[Event "Early-Titled-Tuesday-Blitz-April-02-2024"]
[Site "Chess.com"]
[Date "2024.04.02"]
[Round "11"]
[White "NigiriSushies"]
[Black "Alenzer"]
[Result "0-1"]
[WhiteElo "2264"]
[BlackElo "2208"]
[TimeControl "180+1"]
[EndTime "10:09:00 PDT"]
[Termination "Alenzer won by checkmate"]

1. e4 {[%clk 0:03:00.9]} 1... c5 {[%clk 0:02:58.3]} 2. Nf3 {[%clk 0:03:01.4]}
2... e6 {[%clk 0:02:58.2]} 3. d4 {[%clk 0:03:02.3]} 3... cxd4 {[%clk 0:02:58.6]}
4. Nxd4 {[%clk 0:03:03.2]} 4... Nf6 {[%clk 0:02:59.3]} 5. Nc3 {[%clk 0:03:03.6]}
5... Nc6 {[%clk 0:02:59.8]} 6. Ndb5 {[%clk 0:03:04]} 6... d6 {[%clk 0:02:57.7]}
7. Bf4 {[%clk 0:03:04.2]} 7... e5 {[%clk 0:02:57.8]} 8. Bg5 {[%clk 0:03:04.2]}
8... a6 {[%clk 0:02:57.8]} 9. Na3 {[%clk 0:03:03.1]} 9... b5 {[%clk 0:02:57.5]}
10. Nd5 {[%clk 0:03:01.2]} 10... Be7 {[%clk 0:02:56.9]} 11. Bxf6 {[%clk
0:03:01.1]} 11... Bxf6 {[%clk 0:02:55.9]} 12. c3 {[%clk 0:03:01.6]} 12... Bg5
{[%clk 0:02:54.2]} 13. Nc2 {[%clk 0:03:01.2]} 13... Be6 {[%clk 0:02:51.7]} 14.
a4 {[%clk 0:02:53]} 14... bxa4 {[%clk 0:02:39.4]} 15. Ncb4 {[%clk 0:02:49.6]}
15... Nxb4 {[%clk 0:02:36.8]} 16. cxb4 {[%clk 0:02:46.5]} 16... O-O {[%clk
0:02:35.6]} 17. h4 {[%clk 0:02:20.5]} 17... Bh6 {[%clk 0:02:32.1]} 18. Rxa4
{[%clk 0:02:17.1]} 18... a5 {[%clk 0:02:11.1]} 19. Bc4 {[%clk 0:01:44.9]} 19...
axb4 {[%clk 0:02:07.1]} 20. Rxb4 {[%clk 0:01:30.6]} 20... Qa5 {[%clk 0:02:03]}
21. O-O {[%clk 0:01:11.9]} 21... Bxd5 {[%clk 0:02:00.8]} 22. Rb5 {[%clk
0:01:09.8]} 22... Bxc4 {[%clk 0:01:55.4]} 23. Rxa5 {[%clk 0:01:09.3]} 23... Rxa5
{[%clk 0:01:49.9]} 24. Re1 {[%clk 0:01:08.5]} 24... d5 {[%clk 0:01:25.8]} 25. b3
{[%clk 0:00:56.3]} 25... Ba6 {[%clk 0:01:09.6]} 26. exd5 {[%clk 0:00:51.3]}
26... Rd8 {[%clk 0:01:04.2]} 27. Rxe5 {[%clk 0:00:46.9]} 27... g6 {[%clk
0:01:04.2]} 28. b4 {[%clk 0:00:34.3]} 28... Ra2 {[%clk 0:00:49.8]} 29. g3 {[%clk
0:00:17.1]} 29... Bg7 {[%clk 0:00:48.7]} 30. Qb1 {[%clk 0:00:04.8]} 30... Ra4
{[%clk 0:00:44.1]} 31. Re1 {[%clk 0:00:02.1]} 31... Ra1 {[%clk 0:00:40.5]} 32.
Qxa1 {[%clk 0:00:02.2]} 32... Bxa1 {[%clk 0:00:41]} 33. Rxa1 {[%clk 0:00:02.9]}
33... Bb5 {[%clk 0:00:40]} 34. Ra5 {[%clk 0:00:03.2]} 34... Rxd5 {[%clk
0:00:40]} 35. Kh2 {[%clk 0:00:02.3]} 35... Kf8 {[%clk 0:00:39.9]} 36. Ra8+
{[%clk 0:00:02.3]} 36... Ke7 {[%clk 0:00:40]} 37. Rh8 {[%clk 0:00:02.9]} 37...
h5 {[%clk 0:00:39.1]} 38. Rb8 {[%clk 0:00:03.7]} 38... Kd6 {[%clk 0:00:33]} 39.
Rd8+ {[%clk 0:00:03.2]} 39... Kc6 {[%clk 0:00:32.2]} 40. Rf8 {[%clk 0:00:03.3]}
40... Rf5 {[%clk 0:00:31.9]} 41. Rc8+ {[%clk 0:00:02.8]} 41... Kb7 {[%clk
0:00:30.9]} 42. Rc2 {[%clk 0:00:02.8]} 42... Bc6 {[%clk 0:00:29.4]} 43. f4
{[%clk 0:00:02]} 43... Rb5 {[%clk 0:00:28.5]} 44. Re2 {[%clk 0:00:01.9]} 44...
Rxb4 {[%clk 0:00:28.2]} 45. Re7+ {[%clk 0:00:02.5]} 45... Kb6 {[%clk 0:00:28.1]}
46. Rxf7 {[%clk 0:00:03.2]} 46... Rb2+ {[%clk 0:00:23.9]} 47. Kg1 {[%clk
0:00:03.2]} 47... Rg2+ {[%clk 0:00:23]} 48. Kf1 {[%clk 0:00:03.8]} 48... Rxg3
{[%clk 0:00:23.9]} 49. Rf6 {[%clk 0:00:02.3]} 49... Rg4 {[%clk 0:00:23.2]} 50.
f5 {[%clk 0:00:01.5]} 50... gxf5 {[%clk 0:00:22.3]} 51. Rxf5 {[%clk 0:00:01.5]}
51... Rxh4 {[%clk 0:00:23.2]} 52. Kg1 {[%clk 0:00:02.1]} 52... Kc7 {[%clk
0:00:20.8]} 53. Kf2 {[%clk 0:00:02.6]} 53... Kd6 {[%clk 0:00:20.3]} 54. Kg3
{[%clk 0:00:02.9]} 54... Rh1 {[%clk 0:00:17.9]} 55. Rg5 {[%clk 0:00:02.6]} 55...
Rg1+ {[%clk 0:00:15.5]} 56. Kh4 {[%clk 0:00:02.7]} 56... Rxg5 {[%clk 0:00:15.9]}
57. Kxg5 {[%clk 0:00:03.6]} 57... Bf3 {[%clk 0:00:15]} 58. Kh4 {[%clk
0:00:04.5]} 58... Ke5 {[%clk 0:00:14.9]} 59. Kg5 {[%clk 0:00:05.4]} 59... Ke4
{[%clk 0:00:14.5]} 60. Kh4 {[%clk 0:00:06.3]} 60... Kf4 {[%clk 0:00:14.5]} 61.
Kh3 {[%clk 0:00:06.7]} 61... Kg5 {[%clk 0:00:14.8]} 62. Kh2 {[%clk 0:00:07.6]}
62... Bg4 {[%clk 0:00:15.2]} 63. Kg3 {[%clk 0:00:08]} 63... h4+ {[%clk
0:00:14.9]} 64. Kh2 {[%clk 0:00:08.9]} 64... Kf4 {[%clk 0:00:14.7]} 65. Kg2
{[%clk 0:00:09.2]} 65... h3+ {[%clk 0:00:14.9]} 66. Kh2 {[%clk 0:00:10.1]} 66...
Kf3 {[%clk 0:00:14.8]} 67. Kg1 {[%clk 0:00:10.6]} 67... Kg3 {[%clk 0:00:15.1]}
68. Kh1 {[%clk 0:00:11.1]} 68... Bf3+ {[%clk 0:00:15.5]} 69. Kg1 {[%clk
0:00:12]} 69... h2+ {[%clk 0:00:15.8]} 70. Kf1 {[%clk 0:00:12.9]} 70... h1=Q#
{[%clk 0:00:15.6]} 0-1

[Event "Early-Titled-Tuesday-Blitz-April-02-2024"]
[Site "Chess.com"]
[Date "2024.04.02"]
[Round "11"]
[White "Gabrielian_Artur"]
[Black "slidingknight2775"]
[Result "1/2-1/2"]
[WhiteElo "2788"]
[BlackElo "2618"]
[TimeControl "180+1"]
[EndTime "10:09:03 PDT"]
[Termination "Game drawn by repetition"]

1. Nf3 {[%clk 0:03:00.9]} 1... Nf6 {[%clk 0:02:59]} 2. g3 {[%clk 0:03:01]} 2...
g6 {[%clk 0:02:59.1]} 3. Bg2 {[%clk 0:03:01.4]} 3... Bg7 {[%clk 0:03:00]} 4. O-O
{[%clk 0:03:01.5]} 4... O-O {[%clk 0:03:00.7]} 5. d4 {[%clk 0:03:01.6]} 5... d6
{[%clk 0:03:00.8]} 6. c4 {[%clk 0:03:01.5]} 6... Nc6 {[%clk 0:03:01.4]} 7. Nc3
{[%clk 0:03:00.3]} 7... a6 {[%clk 0:03:01.3]} 8. Bf4 {[%clk 0:02:53.8]} 8... Rb8
{[%clk 0:02:58.3]} 9. Rc1 {[%clk 0:02:52.6]} 9... Bd7 {[%clk 0:02:57.5]} 10. Qd2
{[%clk 0:02:46.5]} 10... b5 {[%clk 0:02:52]} 11. Nd5 {[%clk 0:02:44.4]} 11...
Ne4 {[%clk 0:02:23.1]} 12. Qe3 {[%clk 0:02:41]} 12... f5 {[%clk 0:02:23.4]} 13.
Bh6 {[%clk 0:02:25.1]} 13... bxc4 {[%clk 0:02:17.1]} 14. Bxg7 {[%clk 0:02:24.9]}
14... Kxg7 {[%clk 0:02:18]} 15. Rxc4 {[%clk 0:02:24.4]} 15... Be6 {[%clk
0:02:01]} 16. Rxc6 {[%clk 0:01:31.8]} 16... Bxd5 {[%clk 0:02:00.8]} 17. Rxa6
{[%clk 0:01:31.4]} 17... Rxb2 {[%clk 0:01:56]} 18. Ng5 {[%clk 0:01:24.3]} 18...
Rxa2 {[%clk 0:01:33.5]} 19. Bxe4 {[%clk 0:01:13.9]} 19... fxe4 {[%clk
0:01:29.9]} 20. Rxa2 {[%clk 0:01:13.1]} 20... Bxa2 {[%clk 0:01:29.8]} 21. Qxe4
{[%clk 0:01:04.4]} 21... e5 {[%clk 0:01:09.5]} 22. Nf3 {[%clk 0:00:58.8]} 22...
exd4 {[%clk 0:01:09.7]} 23. Ra1 {[%clk 0:00:55.1]} 23... Bf7 {[%clk 0:01:03.8]}
24. Qxd4+ {[%clk 0:00:45.4]} 24... Qf6 {[%clk 0:01:03.5]} 25. Ra7 {[%clk
0:00:45.2]} 25... c5 {[%clk 0:00:48.1]} 26. Qd2 {[%clk 0:00:30.5]} 26... Kg8
{[%clk 0:00:46.7]} 27. h4 {[%clk 0:00:21.5]} 27... Bc4 {[%clk 0:00:26.9]} 28.
Qh6 {[%clk 0:00:16.6]} 28... Rf7 {[%clk 0:00:19.3]} 29. Ra8+ {[%clk 0:00:14.7]}
29... Rf8 {[%clk 0:00:19.4]} 30. Ra7 {[%clk 0:00:11.3]} 30... Rf7 {[%clk
0:00:19.2]} 31. Rxf7 {[%clk 0:00:11]} 31... Bxf7 {[%clk 0:00:20.1]} 32. Ng5
{[%clk 0:00:09.5]} 32... Qg7 {[%clk 0:00:18.7]} 33. Qxg7+ {[%clk 0:00:08.2]}
33... Kxg7 {[%clk 0:00:19]} 34. Ne4 {[%clk 0:00:08.8]} 34... c4 {[%clk
0:00:15.2]} 35. e3 {[%clk 0:00:09.1]} 35... d5 {[%clk 0:00:13.3]} 36. Nc3 {[%clk
0:00:08.6]} 36... Kf6 {[%clk 0:00:13.9]} 37. f3 {[%clk 0:00:08.6]} 37... Ke5
{[%clk 0:00:12.4]} 38. Kf2 {[%clk 0:00:08.9]} 38... h6 {[%clk 0:00:12.2]} 39. g4
{[%clk 0:00:09]} 39... g5 {[%clk 0:00:09.2]} 40. hxg5 {[%clk 0:00:08.3]} 40...
hxg5 {[%clk 0:00:10.1]} 41. Ne2 {[%clk 0:00:08.6]} 41... Bg8 {[%clk 0:00:07.3]}
42. Nd4 {[%clk 0:00:08.8]} 42... Bh7 {[%clk 0:00:06.7]} 43. Ke2 {[%clk
0:00:09.1]} 43... Bg6 {[%clk 0:00:06]} 44. Kd2 {[%clk 0:00:09.4]} 44... Bh7
{[%clk 0:00:06.2]} 45. Kc3 {[%clk 0:00:09.7]} 45... Bg6 {[%clk 0:00:06.7]} 46.
Nc6+ {[%clk 0:00:09.8]} 46... Kd6 {[%clk 0:00:06.8]} 47. Nb4 {[%clk 0:00:09.5]}
47... Ke5 {[%clk 0:00:04.8]} 48. Nc6+ {[%clk 0:00:09.7]} 48... Kd6 {[%clk
0:00:05.2]} 49. Nd4 {[%clk 0:00:09.1]} 49... Ke5 {[%clk 0:00:05.8]} 50. Ne2
{[%clk 0:00:08.7]} 50... Bh7 {[%clk 0:00:05.5]} 51. Ng3 {[%clk 0:00:08.3]} 51...
Bg6 {[%clk 0:00:05.4]} 52. Ne2 {[%clk 0:00:08.3]} 52... Bh7 {[%clk 0:00:05.6]}
53. Kd2 {[%clk 0:00:08.9]} 53... Kd6 {[%clk 0:00:05.6]} 54. Nd4 {[%clk
0:00:08.6]} 54... Ke5 {[%clk 0:00:06.1]} 55. Nb5 {[%clk 0:00:07.9]} 55... Bg6
{[%clk 0:00:06.1]} 56. Nc3 {[%clk 0:00:07.5]} 56... d4 {[%clk 0:00:04.8]} 57.
exd4+ {[%clk 0:00:06.5]} 57... Kxd4 {[%clk 0:00:05.7]} 58. Ne2+ {[%clk
0:00:06.1]} 58... Ke5 {[%clk 0:00:06.2]} 59. Ke3 {[%clk 0:00:06.6]} 59... Bd3
{[%clk 0:00:06.6]} 60. Nc3 {[%clk 0:00:07]} 60... Bg6 {[%clk 0:00:03.9]} 61. Nb5
{[%clk 0:00:07]} 61... Bd3 {[%clk 0:00:04]} 62. Nd4 {[%clk 0:00:06.9]} 62... Bg6
{[%clk 0:00:04.1]} 63. Ne2 {[%clk 0:00:06.7]} 63... Bd3 {[%clk 0:00:04.3]} 64.
Nc3 {[%clk 0:00:07]} 64... Bg6 {[%clk 0:00:04]} 65. Na4 {[%clk 0:00:06.5]} 65...
Bh7 {[%clk 0:00:03.3]} 66. Nc3 {[%clk 0:00:04.9]} 66... Bd3 {[%clk 0:00:03.8]}
67. Nd1 {[%clk 0:00:05]} 67... Bg6 {[%clk 0:00:04.2]} 68. Nc3 {[%clk 0:00:04.7]}
68... Bd3 {[%clk 0:00:04.7]} 69. Na4 {[%clk 0:00:04.7]} 69... Bg6 {[%clk
0:00:05]} 70. Nc3 {[%clk 0:00:04.5]} 70... Bd3 {[%clk 0:00:05.5]} 1/2-1/2

[Event "Early-Titled-Tuesday-Blitz-April-02-2024"]
[Site "Chess.com"]
[Date "2024.04.02"]
[Round "11"]
[White "EvgenyBurmakin"]
[Black "ritanovikova"]
[Result "1-0"]
[WhiteElo "2366"]
[BlackElo "2153"]
[TimeControl "180+1"]
[EndTime "10:09:04 PDT"]
[Termination "EvgenyBurmakin won on time"]

1. e4 {[%clk 0:02:59.5]} 1... d5 {[%clk 0:02:51.7]} 2. exd5 {[%clk 0:03:00.4]}
2... Qxd5 {[%clk 0:02:52.1]} 3. Nc3 {[%clk 0:03:00.9]} 3... Qd6 {[%clk
0:02:52.7]} 4. Bc4 {[%clk 0:03:00.7]} 4... Nf6 {[%clk 0:02:52.5]} 5. d3 {[%clk
0:03:00.4]} 5... c6 {[%clk 0:02:51.9]} 6. Nge2 {[%clk 0:02:59.4]} 6... Bf5
{[%clk 0:02:51.4]} 7. Bf4 {[%clk 0:02:59]} 7... e5 {[%clk 0:02:51.2]} 8. Bg3
{[%clk 0:02:59]} 8... Qc7 {[%clk 0:02:51]} 9. Qd2 {[%clk 0:02:58.1]} 9... Bd6
{[%clk 0:02:50.6]} 10. O-O-O {[%clk 0:02:56.9]} 10... Nbd7 {[%clk 0:02:51]} 11.
h3 {[%clk 0:02:48.3]} 11... O-O-O {[%clk 0:02:50.2]} 12. Rhe1 {[%clk 0:02:46.7]}
12... Nb6 {[%clk 0:02:49]} 13. Bb3 {[%clk 0:02:46]} 13... e4 {[%clk 0:02:35.1]}
14. Bxd6 {[%clk 0:02:27.2]} 14... Rxd6 {[%clk 0:02:33.7]} 15. Qf4 {[%clk
0:02:02.1]} 15... Bg6 {[%clk 0:02:23.8]} 16. dxe4 {[%clk 0:01:52.1]} 16... Rxd1+
{[%clk 0:02:12.2]} 17. Rxd1 {[%clk 0:01:53]} 17... Qxf4+ {[%clk 0:02:00]} 18.
Nxf4 {[%clk 0:01:53.9]} 18... Bxe4 {[%clk 0:01:48.6]} 19. Bxf7 {[%clk
0:01:40.9]} 19... Bf5 {[%clk 0:01:33]} 20. g4 {[%clk 0:01:30.6]} 20... Bd7
{[%clk 0:01:32.3]} 21. g5 {[%clk 0:01:30.3]} 21... Ne8 {[%clk 0:01:23.9]} 22.
Ne4 {[%clk 0:01:28.9]} 22... Rf8 {[%clk 0:01:19.1]} 23. Bxe8 {[%clk 0:01:22.2]}
23... Rxf4 {[%clk 0:01:18.8]} 24. Nd6+ {[%clk 0:00:58.4]} 24... Kc7 {[%clk
0:01:14.1]} 25. Bxd7 {[%clk 0:00:54.3]} 25... Nxd7 {[%clk 0:01:10.5]} 26. Ne8+
{[%clk 0:00:51.1]} 26... Kc8 {[%clk 0:01:10.6]} 27. Rd2 {[%clk 0:00:45.4]} 27...
g6 {[%clk 0:00:50.5]} 28. Kd1 {[%clk 0:00:42.3]} 28... Rf3 {[%clk 0:00:47]} 29.
Ke2 {[%clk 0:00:29.5]} 29... Rxh3 {[%clk 0:00:46.3]} 30. Nd6+ {[%clk 0:00:23.4]}
30... Kc7 {[%clk 0:00:46.1]} 31. Nxb7 {[%clk 0:00:20.7]} 31... Nb6 {[%clk
0:00:43.3]} 32. Nc5 {[%clk 0:00:20.3]} 32... Nd5 {[%clk 0:00:42.4]} 33. Ne6+
{[%clk 0:00:16.7]} 33... Kb6 {[%clk 0:00:41.5]} 34. c4 {[%clk 0:00:15.4]} 34...
Ne7 {[%clk 0:00:39.3]} 35. Rd7 {[%clk 0:00:12.8]} 35... Nf5 {[%clk 0:00:38.9]}
36. b4 {[%clk 0:00:10.4]} 36... a5 {[%clk 0:00:26.4]} 37. bxa5+ {[%clk
0:00:06.4]} 37... Kxa5 {[%clk 0:00:26.2]} 38. Rb7 {[%clk 0:00:04.6]} 38... Ka6
{[%clk 0:00:25.5]} 39. Nc5+ {[%clk 0:00:04.3]} 39... Ka5 {[%clk 0:00:24.3]} 40.
Nb3+ {[%clk 0:00:03.9]} 40... Ka4 {[%clk 0:00:21.2]} 41. Rb6 {[%clk 0:00:04.1]}
41... Ka3 {[%clk 0:00:20.2]} 42. Rxc6 {[%clk 0:00:04.2]} 42... Rxb3 {[%clk
0:00:19.5]} 43. Ra6+ {[%clk 0:00:03.3]} 43... Kb2 {[%clk 0:00:17.4]} 44. axb3
{[%clk 0:00:04.2]} 44... Nd4+ {[%clk 0:00:17.3]} 45. Kd3 {[%clk 0:00:03.6]}
45... Nf3 {[%clk 0:00:15.6]} 46. Rb6 {[%clk 0:00:03.6]} 46... Ne1+ {[%clk
0:00:15.2]} 47. Ke4 {[%clk 0:00:03.9]} 47... Ng2 {[%clk 0:00:14.1]} 48. c5
{[%clk 0:00:04.8]} 48... h5 {[%clk 0:00:13.8]} 49. c6 {[%clk 0:00:05.7]} 49...
h4 {[%clk 0:00:14]} 50. c7 {[%clk 0:00:06]} 50... h3 {[%clk 0:00:14.3]} 51. c8=Q
{[%clk 0:00:06.3]} 51... h2 {[%clk 0:00:14.7]} 52. Qh3 {[%clk 0:00:06.2]} 52...
Nf4 {[%clk 0:00:14.4]} 53. Qxh2 {[%clk 0:00:06]} 53... Ne2 {[%clk 0:00:14.4]}
54. f4 {[%clk 0:00:05.6]} 54... Kc3 {[%clk 0:00:14.9]} 55. b4 {[%clk 0:00:04.7]}
55... Nc1 {[%clk 0:00:14]} 56. Qg3+ {[%clk 0:00:04.7]} 56... Nd3 {[%clk
0:00:14]} 57. Qxd3+ {[%clk 0:00:04.1]} 57... Kb2 {[%clk 0:00:14.9]} 58. b5
{[%clk 0:00:04.5]} 58... Ka1 {[%clk 0:00:14.9]} 59. Rc6 {[%clk 0:00:05.4]} 59...
Ka2 {[%clk 0:00:01.4]} 60. Rc2+ {[%clk 0:00:06.3]} 1-0

[Event "Early-Titled-Tuesday-Blitz-April-02-2024"]
[Site "Chess.com"]
[Date "2024.04.02"]
[Round "11"]
[White "wonderfultime"]
[Black "Polish_fighter3000"]
[Result "0-1"]
[WhiteElo "2988"]
[BlackElo "3154"]
[TimeControl "180+1"]
[EndTime "10:09:13 PDT"]
[Termination "Polish_fighter3000 won by resignation"]

1. d4 {[%clk 0:02:56]} 1... Nf6 {[%clk 0:02:58.9]} 2. Nf3 {[%clk 0:02:56]} 2...
d5 {[%clk 0:02:58.9]} 3. Bf4 {[%clk 0:02:55.9]} 3... c5 {[%clk 0:02:59.1]} 4. c3
{[%clk 0:02:55.8]} 4... Nc6 {[%clk 0:02:57.4]} 5. e3 {[%clk 0:02:55.3]} 5... Qb6
{[%clk 0:02:55.2]} 6. Qc2 {[%clk 0:02:55.2]} 6... Nh5 {[%clk 0:02:52.3]} 7. Be5
{[%clk 0:02:55]} 7... e6 {[%clk 0:02:47.2]} 8. Nbd2 {[%clk 0:02:54.5]} 8... Bd7
{[%clk 0:02:41.5]} 9. Be2 {[%clk 0:02:50]} 9... Rc8 {[%clk 0:02:40.6]} 10. Qb3
{[%clk 0:02:46.7]} 10... f6 {[%clk 0:02:37.5]} 11. Bg3 {[%clk 0:02:46.3]} 11...
Nxg3 {[%clk 0:02:36.9]} 12. hxg3 {[%clk 0:02:47.2]} 12... g6 {[%clk 0:02:35.9]}
13. O-O {[%clk 0:02:41.9]} 13... Kf7 {[%clk 0:02:35.8]} 14. Rfe1 {[%clk
0:02:35.6]} 14... cxd4 {[%clk 0:02:24.1]} 15. exd4 {[%clk 0:02:34.2]} 15... Bd6
{[%clk 0:02:22.2]} 16. Nf1 {[%clk 0:02:20.7]} 16... Qxb3 {[%clk 0:02:03.5]} 17.
axb3 {[%clk 0:02:19.7]} 17... a5 {[%clk 0:02:04.2]} 18. Bb5 {[%clk 0:02:15.7]}
18... b6 {[%clk 0:02:03.5]} 19. Ne3 {[%clk 0:02:13.7]} 19... Rc7 {[%clk
0:02:02.9]} 20. Bd3 {[%clk 0:01:53.5]} 20... h5 {[%clk 0:01:59.6]} 21. Re2
{[%clk 0:01:38.4]} 21... g5 {[%clk 0:01:58.8]} 22. Rae1 {[%clk 0:01:38.2]} 22...
Ne7 {[%clk 0:01:53.6]} 23. Nc2 {[%clk 0:01:18.7]} 23... g4 {[%clk 0:01:40.7]}
24. Nd2 {[%clk 0:01:11.2]} 24... Rcc8 {[%clk 0:01:32.9]} 25. Nf1 {[%clk
0:01:06.1]} 25... f5 {[%clk 0:01:29.4]} 26. f4 {[%clk 0:00:46.7]} 26... gxf3
{[%clk 0:01:21.2]} 27. gxf3 {[%clk 0:00:47.6]} 27... Rcg8 {[%clk 0:01:19.4]} 28.
Rg2 {[%clk 0:00:47]} 28... h4 {[%clk 0:01:14.5]} 29. gxh4 {[%clk 0:00:45.7]}
29... Ng6 {[%clk 0:01:15.1]} 30. Rd1 {[%clk 0:00:32.6]} 30... Nf4 {[%clk
0:01:05.5]} 31. Rxg8 {[%clk 0:00:32.3]} 31... Rxg8+ {[%clk 0:01:06.4]} 32. Kh1
{[%clk 0:00:32.9]} 32... Rg2 {[%clk 0:00:58.9]} 33. Nfe3 {[%clk 0:00:31.5]}
33... Rf2 {[%clk 0:00:54.1]} 34. Ba6 {[%clk 0:00:27.9]} 34... Rxf3 {[%clk
0:00:49]} 35. Rf1 {[%clk 0:00:27.4]} 35... Rh3+ {[%clk 0:00:47.5]} 36. Kg1
{[%clk 0:00:28]} 36... Rxh4 {[%clk 0:00:47.7]} 37. Rf3 {[%clk 0:00:27.7]} 37...
Rh3 {[%clk 0:00:46.8]} 38. Rxh3 {[%clk 0:00:27.2]} 38... Nxh3+ {[%clk
0:00:47.7]} 39. Kf1 {[%clk 0:00:27.8]} 39... Bc6 {[%clk 0:00:42.1]} 40. Be2
{[%clk 0:00:23.7]} 40... Nf4 {[%clk 0:00:41.9]} 41. Bf3 {[%clk 0:00:24.1]} 41...
Bd7 {[%clk 0:00:32.9]} 42. Ne1 {[%clk 0:00:22.1]} 42... Kf6 {[%clk 0:00:26.3]}
43. Kf2 {[%clk 0:00:21.6]} 43... Be8 {[%clk 0:00:23]} 44. c4 {[%clk 0:00:18.5]}
44... dxc4 {[%clk 0:00:18.3]} 45. bxc4 {[%clk 0:00:19]} 45... Bb4 {[%clk
0:00:16.5]} 46. N3c2 {[%clk 0:00:18.8]} 46... Bd2 {[%clk 0:00:15.4]} 47. b3
{[%clk 0:00:16.3]} 47... e5 {[%clk 0:00:14]} 48. dxe5+ {[%clk 0:00:15.2]} 48...
Kxe5 {[%clk 0:00:14.9]} 49. Bb7 {[%clk 0:00:15.5]} 49... Bxe1+ {[%clk
0:00:11.3]} 50. Kxe1 {[%clk 0:00:16.1]} 50... Nd3+ {[%clk 0:00:11.3]} 51. Kd2
{[%clk 0:00:15]} 51... Nc5 {[%clk 0:00:12]} 52. Bg2 {[%clk 0:00:14.1]} 52...
Nxb3+ {[%clk 0:00:12.2]} 53. Kc3 {[%clk 0:00:15]} 53... Nc5 {[%clk 0:00:12.7]}
54. Ne1 {[%clk 0:00:14]} 54... Bh5 {[%clk 0:00:08.9]} 55. Nc2 {[%clk 0:00:12.1]}
55... f4 {[%clk 0:00:04.1]} 56. Ne1 {[%clk 0:00:11.9]} 56... Bg4 {[%clk
0:00:03.1]} 57. Bc6 {[%clk 0:00:11.8]} 57... Bf5 {[%clk 0:00:02.8]} 58. Nf3+
{[%clk 0:00:11.7]} 58... Kd6 {[%clk 0:00:03.5]} 59. Nd4 {[%clk 0:00:12.5]} 59...
Be4 {[%clk 0:00:03.5]} 60. Be8 {[%clk 0:00:10.2]} 60... f3 {[%clk 0:00:02.6]}
61. Bh5 {[%clk 0:00:10.9]} 61... f2 {[%clk 0:00:02.8]} 62. Be2 {[%clk
0:00:11.7]} 62... Bg2 {[%clk 0:00:03]} 63. Nf5+ {[%clk 0:00:10.5]} 63... Ke5
{[%clk 0:00:03.6]} 64. Ne3 {[%clk 0:00:11.2]} 64... Bh3 {[%clk 0:00:03.6]} 65.
Kd2 {[%clk 0:00:10.2]} 65... Kd4 {[%clk 0:00:03.2]} 66. Nc2+ {[%clk 0:00:10.3]}
66... Ke4 {[%clk 0:00:03.5]} 67. Kc3 {[%clk 0:00:05.8]} 67... f1=Q {[%clk
0:00:03.5]} 68. Bxf1 {[%clk 0:00:06.5]} 68... Bxf1 {[%clk 0:00:04.3]} 69. Na3
{[%clk 0:00:07.4]} 69... Ke5 {[%clk 0:00:04]} 70. Nb5 {[%clk 0:00:07]} 70...
Ne4+ {[%clk 0:00:03.9]} 71. Kb3 {[%clk 0:00:06.5]} 71... Bxc4+ {[%clk
0:00:04.4]} 72. Kxc4 {[%clk 0:00:06]} 72... Nd6+ {[%clk 0:00:05]} 0-1